[Event "FIDE World Senior-50 CC 2023"]
[Site "Terrasini"]
[Date "2023.11.02"]
[Round "8.13"]
[White "Mussanti, Diego"]
[Black "Mohr, Georg"]
[Result "0-1"]
[ECO "B35"]
[WhiteElo "2183"]
[BlackElo "2430"]
[Annotator "ChessBase"]
[PlyCount "154"]
[EventDate "2023.10.22"]
[EventType "swiss"]
[EventCountry "ITA"]
[SourceTitle "playchess.com"]
[Source "ChessBase"]
[SourceQuality "1"]
[TimeControl "40/5400+30:1800+30"]

1. e4 {[%emt 0:00:02]} c5 {[%emt 0:02:11]} 2. Nf3 {[%emt 0:00:12]} Nc6 {[%emt 0:01:10]} 3. d4 {[%emt 0:00:14]} cxd4 {[%emt 0:00:07]} 4. Nxd4 {[%emt 0:00:05]} g6 {[%emt 0:00:18]} 5. Nc3 {[%emt 0:00:30]} Bg7 {[%emt 0:00:06]} 6. Be3 {[%emt 0:00:08]} Nf6 {[%emt 0:00:05]} 7. Bc4 {[%emt 0:00:08]} O-O {[%emt 0:00:08]} 8. Bb3 {[%emt 0:00:14]} Re8 {[%emt 0:01:48]} 9. f4 {[%emt 0:02:13]} d6 {[%emt 0:04:28]} 10. Qf3 {[%emt 0:01:26]} Na5 {[%emt 0:07:24]} 11. f5 {[%emt 0:18:41]} Nxb3 {[%emt 0:03:28]} 12. axb3 {[%emt 0:00:15]} a6 {[%emt 0:10:53]} 13. O-O-O {[%emt 0:06:58]} Qa5 {[%emt 0:18:27]} 14. Kb1 {[%emt 0:00:44]} e6 {[%emt 0:00:18]} 15. Rhf1 {[%emt 0:06:38]} Bd7 {[%emt 0:04:26]} 16. g4 {[%emt 0:05:08]} exf5 {[%emt 0:04:59]} 17. exf5 {[%emt 0:01:23]} Nxg4 {[%emt 0:14:58]} 18. Bg1 {[%emt 0:28:50]} Nf6 {[%emt 0:03:43]} 19. Qxb7 {[%emt 0:01:10]} Rab8 {[%emt 0:02:59]} 20. Qf3 {[%emt 0:02:20]} Rbc8 {[%emt 0:02:36]} 21. h4 {[%emt 0:04:02]} Qd8 {[%emt 0:04:37]} 22. Nd5 {[%emt 0:05:04]} Nxd5 {[%emt 0:03:34]} 23. Qxd5 {[%emt 0:01:19]} Qe7 {[%emt 0:00:16]} 24. fxg6 {[%emt 0:00:28]} hxg6 {[%emt 0:00:07]} 25. h5 {[%emt 0:00:12]} Rc5 {[%emt 0:00:17]} 26. Qf3 {[%emt 0:07:25]} Rxh5 {[%emt 0:00:08]} 27. Nc6 {[%emt 0:00:18]} Qf8 {[%emt 0:01:21]} 28. Nb4 {[%emt 0:00:25]} Rf5 {[%emt 0:01:51]} 29. Qb7 {[%emt 0:01:53]} Rxf1 {[%emt 0:00:39]} 30. Rxf1 {[%emt 0:07:05]} Bh3 {[%emt 0:01:44]} 31. Rc1 {[%emt 0:00:00]} a5 {[%emt 0:03:21]} 32. Nc6 {[%emt 0:00:00]} Bf5 {[%emt 0:01:04]} 33. Bd4 {[%emt 0:00:00]} Be4 {[%emt 0:00:59]} 34. Bxg7 {[%emt 0:00:00]} Kxg7 {[%emt 0:00:35]} 35. Qb6 {[%emt 0:00:00]} Bxc6 {[%emt 0:01:05]} 36. Qxc6 {[%emt 0:00:00]} Rc8 {[%emt 0:00:06]} 37. Qd5 {[%emt 0:00:00]} Rc5 {[%emt 0:00:42]} 38. Qd4+ {[%emt 0:00:00]} Re5 {[%emt 0:00:04]} 39. Rd1 {[%emt 0:00:00]} Qe7 {[%emt 0:00:12]} 40. Ka2 {[%emt 0:00:00]} Qf6 {[%emt 0:01:36]} 41. Qb6 {[%emt 0:30:28]} d5 {[%emt 0:04:11]} 42. Qxa5 {[%emt 0:00:00]} d4 {[%emt 0:00:11]} 43. Qd2 {[%emt 0:00:00]} Rd5 {[%emt 0:03:34]} 44. Kb1 {[%emt 0:00:00]} g5 {[%emt 0:00:34]} 45. Qh2 {[%emt 0:00:00]} Rf5 {[%emt 0:00:38]} 46. Qe2 {[%emt 0:00:00]} Rf4 {[%emt 0:02:06]} 47. b4 {[%emt 0:00:00]} d3 {[%emt 0:01:48]} 48. Qxd3 {[%emt 0:00:00]} Rxb4 {[%emt 0:00:08]} 49. c3 {[%emt 0:00:00]} Rf4 {[%emt 0:00:17]} 50. Rh1 {[%emt 0:00:00]} Rh4 {[%emt 0:01:57]} 51. Rxh4 {[%emt 0:00:00]} gxh4 {[%emt 0:00:04]} 52. Ka2 {[%emt 0:00:00]} Qe6+ {[%emt 0:01:36]} 53. c4 {[%emt 0:00:00]} Qg4 {[%emt 0:00:52]} 54. c5 {[%emt 0:04:43]} h3 {[%emt 0:01:52]} 55. Qc3+ {[%emt 0:00:37]} f6 {[%emt 0:00:28]} 56. Qd2 {[%emt 0:00:18]} Kf7 {[%emt 0:09:53]} 57. Qc2 {[%emt 0:03:26]} Qg2 {[%emt 0:05:31]} 58. Qc4+ {[%emt 0:01:05]} Ke7 {[%emt 0:00:22]} 59. c6 {[%emt 0:01:29]} h2 {[%emt 0:01:09]} 60. Qc5+ {[%emt 0:00:55]} Kf7 {[%emt 0:01:47]} 61. Qh5+ {[%emt 0:00:45]} Kg7 {[%emt 0:00:47]} 62. c7 {[%emt 0:00:25]} Qa8+ {[%emt 0:00:22]} 63. Kb3 {[%emt 0:00:11]} Qb7+ {[%emt 0:00:45]} 64. Ka3 {[%emt 0:01:39]} Qa7+ {[%emt 0:00:44]} 65. Kb3 {[%emt 0:00:24]} Qxc7 {[%emt 0:00:13]} 66. Qg4+ {[%emt 0:00:17]} Kf8 {[%emt 0:00:47]} 67. Qb4+ {[%emt 0:00:27]} Kf7 {[%emt 0:00:20]} 68. Qe4 {[%emt 0:00:46]} Qb6+ {[%emt 0:00:50]} 69. Ka3 {[%emt 0:00:57]} Qd6+ {[%emt 0:00:59]} 70. b4 {[%emt 0:00:33]} Qe5 {[%emt 0:00:58]} 71. Qh7+ {[%emt 0:00:10]} Ke8 {[%emt 0:00:27]} 72. Qh8+ {[%emt 0:00:43]} Ke7 {[%emt 0:00:29]} 73. Qh7+ {[%emt 0:00:18]} Kd8 {[%emt 0:00:20]} 74. Qd3+ {[%emt 0:00:24]} Kc7 {[%emt 0:00:11]} 75. Qc4+ {[%emt 0:00:14]} Kb6 {[%emt 0:00:09]} 76. Qf1 {[%emt 0:01:06]} Qd4 {[%emt 0:01:36]} 77. Qf3 {[%emt 0:00:35]} Qa1+ {[%emt 0:00:12]} 0-1

[Event "FIDE World Senior-50 CC 2023"]
[Site "Terrasini"]
[Date "2023.11.02"]
[Round "8.14"]
[White "Chinchilla Miranda, Eugenio"]
[Black "Nadanian, Ashot"]
[Result "0-1"]
[ECO "E39"]
[WhiteElo "2179"]
[BlackElo "2279"]
[Annotator "ChessBase"]
[PlyCount "138"]
[EventDate "2023.10.22"]
[EventType "swiss"]
[EventCountry "ITA"]
[SourceTitle "playchess.com"]
[Source "ChessBase"]
[SourceQuality "1"]
[TimeControl "40/5400+30:1800+30"]

1. d4 {[%emt 0:00:05]} Nf6 {[%emt 0:01:07]} 2. c4 {[%emt 0:01:35]} e6 {[%emt 0:00:40]} 3. Nc3 {[%emt 0:00:09]} Bb4 {[%emt 0:00:16]} 4. Qc2 {[%emt 0:00:19]} c5 {[%emt 0:01:03]} 5. dxc5 {[%emt 0:00:13]} O-O {[%emt 0:00:49]} 6. a3 {[%emt 0:03:44]} Bxc5 {[%emt 0:00:22]} 7. Nf3 {[%emt 0:01:08]} d5 {[%emt 0:01:23]} 8. Bg5 {[%emt 0:14:44]} Be7 {[%emt 0:02:40]} 9. e3 {[%emt 0:06:02]} Nc6 {[%emt 0:01:18]} 10. Be2 {[%emt 0:08:19]} dxc4 {[%emt 0:09:16]} 11. Bxc4 {[%emt 0:01:18]} Qc7 {[%emt 0:03:20]} 12. Bd3 {[%emt 0:03:24]} h6 {[%emt 0:01:09]} 13. Bh4 {[%emt 0:00:26]} Rd8 {[%emt 0:04:12]} 14. O-O {[%emt 0:03:34]} Bd7 {[%emt 0:04:58]} 15. Rfd1 {[%emt 0:05:55]} Be8 {[%emt 0:02:10]} 16. Rac1 {[%emt 0:03:41]} Rac8 {[%emt 0:04:07]} 17. h3 {[%emt 0:06:27]} Qa5 {[%emt 0:03:57]} 18. Qe2 {[%emt 0:02:42]} a6 {[%emt 0:05:06]} 19. Ne4 {[%emt 0:06:21]} Nxe4 {[%emt 0:00:40]} 20. Bxe4 {[%emt 0:04:19]} Bxh4 {[%emt 0:02:48]} 21. Nxh4 {[%emt 0:00:35]} Rxd1+ {[%emt 0:17:01]} 22. Rxd1 {[%emt 0:01:09]} Qa4 {[%emt 0:00:29]} 23. Qc2 {[%emt 0:01:54]} Qxc2 {[%emt 0:01:29]} 24. Bxc2 {[%emt 0:00:04]} Na5 {[%emt 0:02:00]} 25. Be4 {[%emt 0:05:34]} f5 {[%emt 0:11:00]} 26. Bb1 {[%emt 0:02:28]} Ba4 {[%emt 0:01:08]} 27. Ba2 {[%emt 0:01:36]} Bb3 {[%emt 0:06:12]} 28. Bxb3 {[%emt 0:00:22]} Nxb3 {[%emt 0:00:04]} 29. Rd7 {[%emt 0:00:49]} Nc5 {[%emt 0:00:50]} 30. Re7 {[%emt 0:00:54]} g5 {[%emt 0:02:07]} 31. Ng6 {[%emt 0:01:07]} Ne4 {[%emt 0:02:16]} 32. f3 {[%emt 0:02:44]} Rc1+ {[%emt 0:00:51]} 33. Kh2 {[%emt 0:00:03]} Nd2 {[%emt 0:00:07]} 34. h4 {[%emt 0:10:25]} Nf1+ {[%emt 0:00:24]} 35. Kh3 {[%emt 0:02:45]} Nxe3 {[%emt 0:05:34]} 36. hxg5 {[%emt 0:00:13]} f4 {[%emt 0:01:36]} 37. Kh2 {[%emt 0:00:33]} Nf1+ {[%emt 0:00:50]} 38. Kh3 {[%emt 0:00:13]} Ne3 {[%emt 0:00:12]} 39. Kh2 {[%emt 0:00:09]} hxg5 {[%emt 0:00:15]} 40. Rxb7 {[%emt 0:01:18]} Rc2 {[%emt 0:02:45]} 41. Ne5 {[%emt 0:08:48]} Rxg2+ {[%emt 0:05:39]} 42. Kh3 {[%emt 0:00:55]} Rg3+ {[%emt 0:02:43]} 43. Kh2 {[%emt 0:00:06]} Rg2+ {[%emt 0:08:06]} 44. Kh3 {[%emt 0:06:59]} Rg1 {[%emt 0:00:27]} 45. Kh2 {[%emt 0:00:20]} Re1 {[%emt 0:01:40]} 46. Nd3 {[%emt 0:07:01]} Rd1 {[%emt 0:02:45]} 47. Ne5 {[%emt 0:02:17]} Rd5 {[%emt 0:04:00]} 48. Nc6 {[%emt 0:01:05]} Rd2+ {[%emt 0:00:34]} 49. Kh3 {[%emt 0:01:25]} g4+ {[%emt 0:02:41]} 50. fxg4 {[%emt 0:05:07]} f3 {[%emt 0:00:08]} 51. Ne7+ {[%emt 0:01:52]} Kf8 {[%emt 0:00:05]} 52. Ng6+ {[%emt 0:00:32]} Ke8 {[%emt 0:00:06]} 53. Rb8+ {[%emt 0:00:42]} Kd7 {[%emt 0:03:10]} 54. Ne5+ {[%emt 0:00:28]} Kc7 {[%emt 0:00:05]} 55. Nxf3 {[%emt 0:00:31]} Rf2 {[%emt 0:01:26]} 56. Rf8 {[%emt 0:00:17]} Kd6 {[%emt 0:01:51]} 57. Rf7 {[%emt 0:00:40]} Rxb2 {[%emt 0:01:11]} 58. Ra7 {[%emt 0:00:13]} Kd5 {[%emt 0:01:32]} 59. Rxa6 {[%emt 0:00:36]} Rb3 {[%emt 0:02:10]} 60. Kh4 {[%emt 0:00:24]} Ng2+ {[%emt 0:00:18]} 61. Kg3 {[%emt 0:00:48]} Ne1 {[%emt 0:00:06]} 62. Ra5+ {[%emt 0:00:28]} Kd6 {[%emt 0:00:00]} 63. Ra6+ {[%emt 0:00:06]} Ke7 {[%emt 0:00:18]} 64. Ra7+ {[%emt 0:00:48]} Kf6 {[%emt 0:00:29]} 65. g5+ {[%emt 0:00:31]} Kg6 {[%emt 0:00:05]} 66. Re7 {[%emt 0:00:36]} Rxf3+ {[%emt 0:00:26]} 67. Kg4 {[%emt 0:00:08]} Re3 {[%emt 0:00:05]} 68. a4 {[%emt 0:00:38]} Re4+ {[%emt 0:02:00]} 69. Kg3 {[%emt 0:00:17]} Kxg5 {[%emt 0:00:31]} 0-1

[Event "FIDE World Senior-50 CC 2023"]
[Site "Terrasini"]
[Date "2023.11.02"]
[Round "8.18"]
[White "Dieu, Bruno"]
[Black "Kalisky, Vladimir"]
[Result "0-1"]
[ECO "D00"]
[WhiteElo "2221"]
[BlackElo "2169"]
[Annotator "ChessBase"]
[PlyCount "126"]
[EventDate "2023.10.22"]
[EventType "swiss"]
[EventCountry "ITA"]
[SourceTitle "playchess.com"]
[Source "ChessBase"]
[SourceQuality "1"]
[TimeControl "40/5400+30:1800+30"]

1. d4 {[%emt 0:00:03]} d5 {[%emt 0:00:13]} 2. Nc3 {[%emt 0:00:08]} Nf6 {[%emt 0:00:33]} 3. Bf4 {[%emt 0:00:05]} c6 {[%emt 0:01:29]} 4. e3 {[%emt 0:00:19]} Bf5 {[%emt 0:00:59]} 5. f3 {[%emt 0:00:08]} h6 {[%emt 0:03:22]} 6. g4 {[%emt 0:01:12]} Bh7 {[%emt 0:00:07]} 7. h4 {[%emt 0:00:09]} e6 {[%emt 0:02:58]} 8. Bd3 {[%emt 0:01:31]} Bd6 {[%emt 0:06:30]} 9. Nge2 {[%emt 0:00:31]} Bxd3 {[%emt 0:03:14]} 10. cxd3 {[%emt 0:03:42]} Bxf4 {[%emt 0:12:39]} 11. Nxf4 {[%emt 0:00:04]} Nbd7 {[%emt 0:00:16]} 12. Kf2 {[%emt 0:00:17]} e5 {[%emt 0:10:45]} 13. dxe5 {[%emt 0:00:16]} Nxe5 {[%emt 0:00:06]} 14. d4 {[%emt 0:00:07]} Nc4 {[%emt 0:04:27]} 15. b3 {[%emt 0:02:20]} Nd6 {[%emt 0:01:11]} 16. Qd3 {[%emt 0:00:05]} Qa5 {[%emt 0:08:14]} 17. g5 {[%emt 0:02:22]} Qxc3 {[%emt 0:00:23]} 18. gxf6 {[%emt 0:04:36]} Qxd3 {[%emt 0:00:53]} 19. Nxd3 {[%emt 0:00:01]} gxf6 {[%emt 0:00:19]} 20. Nf4 {[%emt 0:01:47]} Ke7 {[%emt 0:02:44]} 21. Rae1 {[%emt 0:04:45]} f5 {[%emt 0:00:24]} 22. Nd3 {[%emt 0:01:57]} Rae8 {[%emt 0:03:27]} 23. a4 {[%emt 0:00:44]} Rhg8 {[%emt 0:01:16]} 24. Rc1 {[%emt 0:00:26]} Rg7 {[%emt 0:01:07]} 25. Nf4 {[%emt 0:04:10]} Reg8 {[%emt 0:02:35]} 26. Rh2 {[%emt 0:00:13]} a6 {[%emt 0:04:37]} 27. Nh5 {[%emt 0:00:45]} Rh7 {[%emt 0:00:27]} 28. Rg1 {[%emt 0:02:27]} Rxg1 {[%emt 0:00:58]} 29. Kxg1 {[%emt 0:00:01]} Ne8 {[%emt 0:00:41]} 30. Rg2 {[%emt 0:01:21]} Rh8 {[%emt 0:04:21]} 31. a5 {[%emt 0:01:15]} Kf8 {[%emt 0:00:27]} 32. Kf2 {[%emt 0:00:17]} Nc7 {[%emt 0:02:41]} 33. Ng7 {[%emt 0:06:39]} f4 {[%emt 0:01:35]} 34. exf4 {[%emt 0:00:54]} Rg8 {[%emt 0:00:50]} 35. Nf5 {[%emt 0:00:24]} Rxg2+ {[%emt 0:00:20]} 36. Kxg2 {[%emt 0:00:01]} Ne6 {[%emt 0:00:17]} 37. Kf2 {[%emt 0:04:24]} h5 {[%emt 0:01:34]} 38. Ke3 {[%emt 0:02:40]} Ng7 {[%emt 0:02:10]} 39. Nxg7 {[%emt 0:21:35]} Kxg7 {[%emt 0:00:06]} 40. f5 {[%emt 0:00:02]} Kf6 {[%emt 0:00:33]} 41. Kf4 {[%emt 0:30:01]} Ke7 {[%emt 0:30:08]} 42. Kg5 {[%emt 0:01:05]} f6+ {[%emt 0:00:24]} 43. Kf4 {[%emt 0:02:43]} b6 {[%emt 0:04:43]} 44. axb6 {[%emt 0:09:17]} Kd7 {[%emt 0:00:19]} 45. Ke3 {[%emt 0:00:37]} Kc8 {[%emt 0:00:17]} 46. Kd3 {[%emt 0:00:05]} Kb7 {[%emt 0:00:20]} 47. Kc3 {[%emt 0:00:03]} a5 {[%emt 0:01:14]} 48. Kc2 {[%emt 0:00:48]} Kxb6 {[%emt 0:00:46]} 49. Kd3 {[%emt 0:00:05]} Kb5 {[%emt 0:01:06]} 50. Kc3 {[%emt 0:00:01]} c5 {[%emt 0:00:19]} 51. dxc5 {[%emt 0:05:20]} Kxc5 {[%emt 0:00:17]} 52. Kd3 {[%emt 0:00:03]} d4 {[%emt 0:00:41]} 53. Ke4 {[%emt 0:00:17]} Kb4 {[%emt 0:00:18]} 54. Kxd4 {[%emt 0:00:03]} Kxb3 {[%emt 0:00:13]} 55. Kd5 {[%emt 0:00:05]} a4 {[%emt 0:00:15]} 56. Ke6 {[%emt 0:00:03]} a3 {[%emt 0:00:09]} 57. Kxf6 {[%emt 0:00:03]} a2 {[%emt 0:00:06]} 58. Kg6 {[%emt 0:02:12]} a1=Q {[%emt 0:00:14]} 59. f6 {[%emt 0:00:51]} Qg1+ {[%emt 0:07:46]} 60. Kh7 {[%emt 0:00:53]} Qc5 {[%emt 0:00:43]} 61. Kg8 {[%emt 0:00:28]} Qc8+ {[%emt 0:00:27]} 62. Kg7 {[%emt 0:00:22]} Qc3 {[%emt 0:00:42]} 63. f4 {[%emt 0:02:25]} Kc4 {[%emt 0:01:19]} 0-1

[Event "FIDE World Senior-50 CC 2023"]
[Site "Terrasini"]
[Date "2023.11.02"]
[Round "8.19"]
[White "Duong, Thanh Nha"]
[Black "Milat, Marcel"]
[Result "1/2-1/2"]
[ECO "A34"]
[WhiteElo "2081"]
[BlackElo "2207"]
[Annotator "ChessBase"]
[PlyCount "175"]
[EventDate "2023.10.22"]
[EventType "swiss"]
[EventCountry "ITA"]
[SourceTitle "playchess.com"]
[Source "ChessBase"]
[SourceQuality "1"]
[TimeControl "40/5400+30:1800+30"]

1. Nf3 {[%emt 0:00:06]} Nf6 {[%emt 0:09:11]} 2. c4 {[%emt 0:00:14]} e6 {[%emt 0:00:35]} 3. Nc3 {[%emt 0:00:11]} c5 {[%emt 0:01:10]} 4. g3 {[%emt 0:00:43]} d5 {[%emt 0:02:30]} 5. d4 {[%emt 0:09:55]} cxd4 {[%emt 0:00:28]} 6. Nb5 {[%emt 0:04:19]} a6 {[%emt 0:10:40]} 7. Nbxd4 {[%emt 0:00:45]} dxc4 {[%emt 0:00:11]} 8. Bg2 {[%emt 0:10:24]} e5 {[%emt 0:09:46]} 9. Nc2 {[%emt 0:02:41]} Qxd1+ {[%emt 0:00:07]} 10. Kxd1 {[%emt 0:00:04]} Nc6 {[%emt 0:00:31]} 11. Ne3 {[%emt 0:06:31]} Be6 {[%emt 0:14:42]} 12. Nd2 {[%emt 0:15:34]} O-O-O {[%emt 0:00:59]} 13. Bxc6 {[%emt 0:00:52]} bxc6 {[%emt 0:00:09]} 14. Kc2 {[%emt 0:00:28]} c3 {[%emt 0:15:29]} 15. bxc3 {[%emt 0:01:02]} Nd5 {[%emt 0:02:42]} 16. Nb3 {[%emt 0:04:22]} Be7 {[%emt 0:01:50]} 17. Na5 {[%emt 0:03:25]} Kc7 {[%emt 0:00:06]} 18. Nec4 {[%emt 0:20:16]} Bf5+ {[%emt 0:01:17]} 19. Kb2 {[%emt 0:00:12]} Rb8+ {[%emt 0:00:30]} 20. Nb3 {[%emt 0:00:06]} f6 {[%emt 0:00:05]} 21. Re1 {[%emt 0:01:16]} Be6 {[%emt 0:00:27]} 22. Bd2 {[%emt 0:03:02]} Nxc3 {[%emt 0:00:38]} 23. Kxc3 {[%emt 0:07:26]} Bb4+ {[%emt 0:00:07]} 24. Kc2 {[%emt 0:00:35]} Bxc4 {[%emt 0:00:20]} 25. Bxb4 {[%emt 0:00:13]} Rxb4 {[%emt 0:00:08]} 26. Kc3 {[%emt 0:00:14]} Rhb8 {[%emt 0:00:41]} 27. Nc5 {[%emt 0:00:21]} Kd6 {[%emt 0:07:28]} 28. a3 {[%emt 0:01:45]} Kxc5 {[%emt 0:00:17]} 29. axb4+ {[%emt 0:00:22]} Rxb4 {[%emt 0:00:08]} 30. Reb1 {[%emt 0:01:36]} Rb5 {[%emt 0:03:14]} 31. e3 {[%emt 0:04:13]} e4 {[%emt 0:03:05]} 32. Rd1 {[%emt 0:02:17]} Bd3 {[%emt 0:01:01]} 33. Rxa6 {[%emt 0:00:30]} Kd5 {[%emt 0:02:58]} 34. Ra2 {[%emt 0:00:34]} c5 {[%emt 0:00:07]} 35. Rda1 {[%emt 0:00:26]} Bc4 {[%emt 0:00:16]} 36. Rb2 {[%emt 0:00:08]} Rxb2 {[%emt 0:00:45]} 37. Kxb2 {[%emt 0:00:01]} g5 {[%emt 0:01:39]} 38. Ra7 {[%emt 0:00:31]} h5 {[%emt 0:00:07]} 39. Rh7 {[%emt 0:00:20]} Be2 {[%emt 0:00:08]} 40. Kc3 {[%emt 0:00:50]} Kd6 {[%emt 0:03:08]} 41. Rh8 {[%emt 0:31:35]} Kd5 {[%emt 0:30:17]} 42. Rd8+ {[%emt 0:00:00]} Ke6 {[%emt 0:00:00]} 43. Rc8 {[%emt 0:00:00]} Kd6 {[%emt 0:00:00]} 44. Kb3 {[%emt 0:00:00]} Bb5 {[%emt 0:00:00]} 45. Rb8 {[%emt 0:00:00]} Be2 {[%emt 0:00:00]} 46. Rb6+ {[%emt 0:00:00]} Ke7 {[%emt 0:00:00]} 47. Rc6 {[%emt 0:00:00]} c4+ {[%emt 0:00:00]} 48. Kc3 {[%emt 0:00:00]} Kf7 {[%emt 0:00:00]} 49. Kd4 {[%emt 0:00:00]} Bd3 {[%emt 0:00:00]} 50. Kd5 {[%emt 0:00:00]} h4 {[%emt 0:00:00]} 51. gxh4 {[%emt 0:00:00]} gxh4 {[%emt 0:00:00]} 52. Rc8 {[%emt 0:00:00]} Kg7 {[%emt 0:00:00]} 53. Ke6 {[%emt 0:00:00]} Kg6 {[%emt 0:00:00]} 54. Rc7 {[%emt 0:00:00]} h3 {[%emt 0:00:00]} 55. Rc5 {[%emt 0:00:00]} Be2 {[%emt 0:00:00]} 56. Kd5 {[%emt 0:00:00]} Kf5 {[%emt 0:00:00]} 57. Rc6 {[%emt 0:00:00]} Bd3 {[%emt 0:00:14]} 58. Kd4 {[%emt 0:00:00]} Kg5 {[%emt 0:00:15]} 59. Rc8 {[%emt 0:00:20]} Kg4 {[%emt 0:01:00]} 60. Rg8+ {[%emt 0:01:16]} Kf3 {[%emt 0:00:14]} 61. Rg3+ {[%emt 0:00:30]} Kxf2 {[%emt 0:00:08]} 62. Rxh3 {[%emt 0:00:09]} Kg2 {[%emt 0:08:09]} 63. Rh8 {[%emt 0:02:38]} f5 {[%emt 0:00:42]} 64. h4 {[%emt 0:00:17]} Kh3 {[%emt 0:00:07]} 65. h5 {[%emt 0:04:23]} Kh4 {[%emt 0:00:23]} 66. h6 {[%emt 0:00:35]} Kh5 {[%emt 0:00:22]} 67. Ke5 {[%emt 0:01:12]} Kg6 {[%emt 0:00:20]} 68. Rc8 {[%emt 0:01:45]} Kxh6 {[%emt 0:00:18]} 69. Kf6 {[%emt 0:00:06]} Kh5 {[%emt 0:04:08]} 70. Kxf5 {[%emt 0:00:06]} Kh4 {[%emt 0:00:07]} 71. Ke5 {[%emt 0:01:09]} Kg3 {[%emt 0:00:15]} 72. Kd4 {[%emt 0:00:08]} Kf2 {[%emt 0:00:16]} 73. Rf8+ {[%emt 0:01:08]} Ke2 {[%emt 0:00:36]} 74. Rh8 {[%emt 0:00:36]} c3 {[%emt 0:01:07]} 75. Rh2+ {[%emt 0:00:13]} Kf3 {[%emt 0:00:07]} 76. Kxc3 {[%emt 0:00:48]} Kxe3 {[%emt 0:00:11]} 77. Rh3+ {[%emt 0:00:06]} Kf4 {[%emt 0:01:57]} 78. Kd4 {[%emt 0:00:24]} Kg4 {[%emt 0:00:17]} 79. Rh8 {[%emt 0:00:11]} Kf3 {[%emt 0:00:07]} 80. Rf8+ {[%emt 0:00:16]} Ke2 {[%emt 0:00:12]} 81. Rf7 {[%emt 0:00:13]} Bb1 {[%emt 0:00:16]} 82. Rb7 {[%emt 0:00:10]} Bd3 {[%emt 0:00:03]} 83. Rb2+ {[%emt 0:00:18]} Kf3 {[%emt 0:00:12]} 84. Rh2 {[%emt 0:00:16]} Kg3 {[%emt 0:00:12]} 85. Rh1 {[%emt 0:00:14]} Kf3 {[%emt 0:00:04]} 86. Kc3 {[%emt 0:00:24]} Kf2 {[%emt 0:00:54]} 87. Kd2 {[%emt 0:00:28]} Bf1 {[%emt 0:00:45]} 88. Rxf1+ {[%emt 0:03:36]} 1/2-1/2

[Event "FIDE World Senior-50 CC 2023"]
[Site "Terrasini"]
[Date "2023.11.03"]
[Round "9.1"]
[White "Atalik, Suat"]
[Black "Dlugy, Maxim"]
[Result "1/2-1/2"]
[ECO "B36"]
[WhiteElo "2427"]
[BlackElo "2520"]
[Annotator "RC"]
[PlyCount "20"]
[EventDate "2023.10.22"]
[EventType "swiss"]
[EventCountry "ITA"]
[SourceTitle "playchess.com"]
[Source "ChessBase"]
[SourceQuality "1"]
[TimeControl "40/5400+30:1800+30"]

1. c4 {[%emt 0:00:05]} c5 {[%emt 0:01:41]} 2. Nf3 {[%emt 0:00:22]} Nc6 {[%emt 0:02:02]} 3. d4 {[%emt 0:00:18]} cxd4 {[%emt 0:00:04]} 4. Nxd4 {[%emt 0:00:07]} g6 {[%emt 0:04:08]} 5. e4 {[%emt 0:02:16]} Bg7 {[%emt 0:00:03]} 6. Be3 {[%emt 0:00:40]} Nf6 {[%emt 0:01:48]} 7. Nc3 {[%emt 0:00:17]} d6 {[%emt 0:01:47]} 8. Be2 {[%emt 0:01:09]} Nxd4 {[%emt 0:01:02]} 9. Qxd4 {[%emt 0:09:48]} O-O {[%emt 0:00:23]} 10. Qd2 {[%emt 0:00:13]} Bd7 {[%emt 0:02:22]} 1/2-1/2

[Event "FIDE World Senior-50 CC 2023"]
[Site "Terrasini"]
[Date "2023.11.03"]
[Round "9.2"]
[White "Stefansson, Hannes"]
[Black "Cabe, Arlan"]
[Result "1-0"]
[ECO "B81"]
[WhiteElo "2529"]
[BlackElo "2303"]
[Annotator "RC"]
[PlyCount "85"]
[EventDate "2023.10.22"]
[EventType "swiss"]
[EventCountry "ITA"]
[SourceTitle "playchess.com"]
[Source "ChessBase"]
[SourceQuality "1"]
[TimeControl "40/5400+30:1800+30"]

1. e4 {[%emt 0:00:08]} c5 {[%emt 0:00:27]} 2. Nf3 {[%emt 0:00:17]} e6 {[%emt 0:00:19]} 3. d4 {[%emt 0:00:20]} cxd4 {[%emt 0:00:09]} 4. Nxd4 {[%emt 0:00:13]} Nf6 {[%emt 0:00:07]} 5. Nc3 {[%emt 0:00:26]} d6 {[%emt 0:00:18]} 6. g4 {[%emt 0:02:41]} h6 {[%emt 0:01:22]} 7. Bg2 {[%emt 0:02:21]} a6 {[%emt 0:03:19]} 8. h4 {[%emt 0:06:05]} Nfd7 {[%emt 0:07:45]} 9. Be3 {[%emt 0:06:40]} Nc6 {[%emt 0:09:09]} 10. Qe2 {[%emt 0:02:17]} Qc7 {[%emt 0:03:45]} 11. O-O-O {[%emt 0:01:46]} Na5 {[%emt 0:21:37]} 12. Kb1 {[%emt 0:09:19]} Rb8 {[%emt 0:14:56]} 13. f4 {[%emt 0:03:21]} b5 {[%emt 0:03:32]} 14. Nd5 {[%emt 0:03:22]} exd5 {[%emt 0:08:01]} 15. exd5 {[%emt 0:00:07]} Ne5 {[%emt 0:13:51]} 16. fxe5 {[%emt 0:03:45]} dxe5 {[%emt 0:00:09]} 17. Nc6 {[%emt 0:02:59]} Nxc6 {[%emt 0:02:05]} 18. dxc6 {[%emt 0:00:06]} Be7 {[%emt 0:01:58]} 19. Bd5 {[%emt 0:01:32]} O-O {[%emt 0:02:17]} 20. g5 {[%emt 0:00:55]} Rd8 {[%emt 0:01:29]} 21. Bxf7+ {[%emt 0:06:29]} Kxf7 {[%emt 0:00:36]} 22. Qh5+ {[%emt 0:00:37]} Kg8 {[%emt 0:01:00]} 23. gxh6 {[%emt 0:00:40]} Bf6 {[%emt 0:03:09]} 24. Rdg1 {[%emt 0:07:39]} Be6 {[%emt 0:00:33]} 25. hxg7 {[%emt 0:00:42]} Qxc6 {[%emt 0:00:28]} 26. Qh8+ {[%emt 0:04:37]} Kf7 {[%emt 0:00:02]} 27. g8=Q+ {[%emt 0:00:18]} Rxg8 {[%emt 0:00:32]} 28. Qh7+ {[%emt 0:00:08]} Bg7 {[%emt 0:01:00]} 29. Bh6 {[%emt 0:01:46]} Bxa2+ {[%emt 0:00:27]} 30. Kxa2 {[%emt 0:00:31]} Qxh6 {[%emt 0:00:07]} 31. Qf5+ {[%emt 0:00:29]} Bf6 {[%emt 0:00:52]} 32. Qd7+ {[%emt 0:00:24]} Kf8 {[%emt 0:00:36]} 33. Qd6+ {[%emt 0:03:24]} Kf7 {[%emt 0:00:03]} 34. Qd5+ {[%emt 0:00:26]} Ke7 {[%emt 0:00:48]} 35. Rxg8 {[%emt 0:00:11]} Rxg8 {[%emt 0:00:30]} 36. Qxg8 {[%emt 0:00:07]} Qd2 {[%emt 0:00:16]} 37. Qh7+ {[%emt 0:01:45]} Ke6 {[%emt 0:00:42]} 38. Rf1 {[%emt 0:01:17]} Qd5+ {[%emt 0:00:41]} 39. Kb1 {[%emt 0:00:14]} Qd6 {[%emt 0:00:27]} 40. h5 {[%emt 0:01:10]} Qe7 {[%emt 0:00:33]} 41. Qf5+ {[%emt 0:30:11]} Kf7 {[%emt 0:30:03]} 42. h6 {[%emt 0:01:14]} e4 {[%emt 0:00:34]} 43. h7 {[%emt 0:00:25]} 1-0